bitfinex-derivatives/quotes_ETHF0:USTF0_20240928
["timestamp","ask_amount","ask_price","bid_price","bid_amount"]
[1727531054381,6.6051,2664.3,2664.2,2.20517271]
[1727531054985,6.235,2664.3,2664.2,2.20517271]
[1727531055383,1.96820116,2664.4,2664.2,2.20517271]
[1727531055583,3.5867,2664.5,2664.3,1.7371]
[1727531055584,5.93011116,2664.5,2664.3,1.7371]
[1727531056288,3.96191,2664.5,2664.4,0.05917271]
[1727531057785,5.92873432,2664.5,2664.4,0.05917271]
[1727531057988,5.5535058,2664.5,2664.4,0.05917271]
[1727531058587,5.9287158,2664.5,2664.4,0.05917271]
[1727531058989,2.7209158,2664.5,2664.4,0.05917271]
[1727531060884,0.75411,2664.5,2664.4,0.05917271]
[1727531061088,2.7209158,2664.5,2664.4,0.05917271]
[1727531061290,0.75411,2664.5,2664.4,0.05917271]
[1727531061690,0.75411,2664.5,2664.4,10.18719271]
[1727531061691,1.3516058,2664.5,2664.4,10.18719271]
[1727531062001,0.348,2664.8,2664.4,10.18719271]
[1727531062002,0.348,2664.8,2664.4,10.93311991]
[1727531062183,0.37517,2664.8,2664.6,0.05917271]
[1727531062381,0.3731,2664.7,2664.6,0.05917271]
[1727531062690,0.7565,2664.7,2664.6,0.05917271]
[1727531063284,0.7565,2664.7,2664.6,0.85517271]
[1727531063486,0.7565,2664.7,2664.6,2.20517271]
[1727531064000,6.9915,2664.7,2664.6,2.20517271]
[1727531064690,6.9915,2664.7,2664.6,2.58036271]
[1727531065092,6.6081,2664.7,2664.6,2.20517271]
[1727531065290,6.6081,2664.7,2664.6,2.58036271]
[1727531065988,6.6081,2664.7,2664.6,2.20517271]
[1727531066679,6.6081,2664.7,2664.6,2.58036271]
[1727531068090,6.6081,2664.7,2664.6,2.20517271]
[1727531068393,6.6081,2664.7,2664.6,2.58036271]
[1727531070784,6.6081,2664.7,2664.6,0.05917271]
[1727531070986,6.6081,2664.7,2664.6,0.85617271]
[1727531070987,6.98328,2664.7,2664.6,0.85617271]
[1727531071787,6.6081,2664.7,2664.6,2.58136271]
[1727531072893,6.6081,2664.7,2664.6,2.20617271]
[1727531075790,6.6081,2664.7,2664.6,2.58136271]
[1727531075992,6.6081,2664.7,2664.6,6.33416271]
[1727531076189,6.6081,2664.7,2664.6,5.95897271]
[1727531076786,0.3731,2664.7,2664.6,6.33416271]
[1727531079492,0.3737,2664.9,2664.7,0.37517]
[1727531079792,0.3737,2664.9,2664.8,1.35]
[1727531080306,0.3737,2664.9,2664.8,1.40917271]
[1727531082395,0.3737,2664.9,2664.8,1.78433271]
[1727531082998,0.74885,2664.9,2664.8,2.20617271]
[1727531083898,0.3737,2664.9,2664.8,2.20617271]
[1727531084701,0.74885,2664.9,2664.8,2.20617271]
[1727531085495,0.74885,2664.9,2664.8,1.40917271]
[1727531085699,10.73665,2664.9,2664.8,0.85617271]
[1727531085999,6.98385,2664.9,2664.8,0.85617271]
[1727531086597,6.98385,2664.9,2664.8,0.05917271]
[1727531087595,10.73665,2664.9,2664.8,0.05917271]
[1727531092202,12.70162779,2664.9,2664.8,0.05917271]
[1727531092509,13.63950779,2664.9,2664.8,0.05917271]
[1727531092803,12.70162779,2664.9,2664.8,0.05917271]
[1727531093193,13.63950779,2664.9,2664.8,0.05917271]
[1727531093398,15.48532937,2664.9,2664.8,0.05917271]
[1727531093804,13.02453,2664.9,2664.8,0.05917271]
[1727531094008,13.02453,2664.9,2664.5,1.35]
[1727531094009,0.37519,2664.6,2664.5,1.35]
[1727531094206,6.61019,2664.6,2664.5,1.35]
[1727531094705,7.38909,2664.6,2664.5,1.35]
[1727531095106,0.37521,2664.5,2664.3,2.147]
[1727531095308,2.34078499,2664.5,2664.3,2.147]
[1727531095812,1.96557499,2664.5,2664.3,2.147]
[1727531096008,1.96557499,2664.5,2664.3,2.52223]
[1727531096196,1.96557499,2664.5,2664.3,2.147]
[1727531096601,9.35467499,2664.6,2664.4,1.35]
[1727531097102,0.3984,2664.5,2664.4,1.35]
[1727531099313,0.77361,2664.5,2664.4,1.35]
[1727531100509,0.3984,2664.5,2664.4,1.35]
[1727531100703,0.77361,2664.5,2664.4,1.35]
[1727531101835,0.37523,2664.4,2664.3,1.35]
[1727531102309,6.6334,2664.5,2664.3,1.35]
[1727531102310,7.00861,2664.5,2664.3,1.35]
[1727531102713,0.37522,2664.4,2664.3,1.35]
[1727531103616,9.81802,2664.4,2664.3,1.35]
[1727531104915,0.37525,2664.2,2664.1,1.35]
[1727531105415,0.37525,2664.2,2664.0,1.72528]
[1727531105618,1.1769,2664.1,2664.0,1.35]
[1727531105920,7.78716,2664.1,2664.0,1.35]
[1727531106120,0.37528,2664.0,2663.9,36.29005531]
[1727531106414,0.37528,2664.0,2663.9,4.34005531]
[1727531107311,0.3753,2663.8,2663.6,2.52133]
[1727531107515,8.7573,2663.7,2663.1,3.39641725]
[1727531107712,8.7573,2663.7,2663.2,0.397]
[1727531107713,6.235,2663.4,2663.2,0.397]
[1727531108015,6.235,2663.4,2663.2,0.37539]
[1727531108016,7.006,2663.3,2663.2,0.37539]
[1727531108208,7.006,2663.3,2663.2,0.77239]
[1727531108409,7.006,2663.3,2663.2,0.397]
[1727531108810,7.38138,2663.3,2663.2,1.747]
[1727531109020,7.78268,2663.3,2663.2,1.747]
[1727531109311,7.78268,2663.3,2662.9,5.2153387]
[1727531109312,0.37539,2663.2,2662.9,5.2153387]
[1727531109520,0.3754,2663.1,2662.9,4.8024387]
[1727531109902,0.3754,2663.1,2663.0,5.28414987]
[1727531110111,0.37542,2663.0,2662.7,11.36231]
[1727531110313,9.9902,2663.1,2662.7,12.71231]
[1727531110314,0.37543,2662.9,2662.7,12.71231]
[1727531110613,6.235,2663.1,2662.7,12.71231]
[1727531110614,0.75935,2662.8,2662.7,11.91631]
[1727531110805,0.75935,2662.8,2662.7,10.56631]
[1727531111213,1.50745,2662.8,2662.7,10.56631]
[1727531111810,1.132,2662.8,2662.7,10.56631]
[1727531112013,7.74245,2662.8,2662.7,10.56631]
[1727531113521,1.50745,2662.8,2662.7,10.56631]
[1727531114718,5.26265,2662.8,2662.7,10.56631]
[1727531116220,11.49765,2662.8,2662.7,10.56631]
[1727531116412,12.43627,2662.8,2662.7,10.56631]
[1727531117518,11.49765,2662.8,2662.7,10.56631]
[1727531117711,0.7584,2662.8,2662.7,13.49631]
[1727531117915,3.2078,2662.9,2662.7,13.49631]
[1727531118111,6.6277,2663.1,2662.8,3.3164]
[1727531118316,7.0031,2663.1,2662.9,0.77633]
[1727531118516,7.0031,2663.1,2662.9,0.4009]
[1727531118817,3.5774,2663.4,2662.9,0.77632]
[1727531119020,0.37539,2663.2,2662.9,0.77632]
[1727531119914,0.76328,2663.3,2663.0,0.37541]
[1727531120619,0.37539,2663.2,2662.9,0.77632]
[1727531121923,0.37539,2663.2,2662.9,0.77633]
[1727531122719,0.37539,2663.2,2662.9,0.4009]
[1727531123016,0.37539,2663.2,2662.9,0.77633]
[1727531123418,0.3879,2663.3,2663.0,0.37542]
[1727531123419,0.76328,2663.3,2663.0,0.37542]
[1727531123618,0.76328,2663.3,2662.9,0.77633]
[1727531123619,6.61039,2663.2,2662.9,0.77633]
[1727531125223,6.61039,2663.2,2662.9,0.77632]
[1727531126318,0.37541,2663.1,2662.9,0.4009]
[1727531127415,6.235,2663.2,2662.9,0.4009]
[1727531127416,0.37542,2663.0,2662.9,0.4009]
[1727531127618,0.37544,2662.9,2662.7,14.57011]
[1727531130419,0.37543,2662.9,2662.7,14.94557]
[1727531130624,0.37543,2662.9,2662.7,14.57011]
[1727531130915,0.37543,2662.9,2662.7,13.77411]
[1727531131222,0.37544,2662.9,2662.7,13.77411]
[1727531131928,0.37543,2662.9,2662.7,14.14957]
[1727531132229,0.4073,2663.0,2662.7,14.14957]
[1727531132723,0.78273,2663.0,2662.7,14.14957]
[1727531133427,0.4073,2663.0,2662.7,13.77411]
[1727531133632,6.235,2662.9,2662.7,14.14956]
[1727531133932,6.61044,2662.9,2662.7,13.77411]
[1727531134229,6.235,2662.9,2662.7,15.49957]
[1727531134427,6.61043,2662.9,2662.7,15.49957]
[1727531134627,0.78273,2663.0,2662.7,15.49957]
[1727531135015,0.78273,2663.0,2662.7,12.29177]
[1727531135926,0.37543,2662.9,2662.7,12.29177]
[1727531136120,0.78273,2663.0,2662.7,12.29177]
[1727531136320,0.37543,2662.9,2662.7,12.29177]
[1727531136524,0.37543,2662.9,2662.7,12.71231]
[1727531136724,0.37543,2662.9,2662.7,11.91631]
[1727531137628,0.37545,2662.8,2662.7,10.56631]
[1727531137830,7.41205,2662.8,2662.7,10.56631]
[1727531142031,8.35067,2662.8,2662.7,10.56631]
[1727531142230,9.70067,2662.8,2662.7,10.56631]
[1727531143030,13.45587,2662.8,2662.7,10.56631]
[1727531143946,15.4189647,2662.8,2662.7,10.56631]
[1727531147534,13.45587,2662.8,2662.7,10.56631]
[1727531150941,9.70067,2662.8,2662.7,10.56631]
[1727531151137,13.45587,2662.8,2662.7,10.56631]
[1727531151645,15.4189647,2662.8,2662.7,10.56631]
[1727531153537,13.45587,2662.8,2662.7,10.56631]
[1727531154846,15.90973718,2662.8,2662.7,10.56631]
[1727531155548,15.91482585,2662.8,2662.7,10.56631]
[1727531156050,21.91482585,2662.8,2662.7,10.56631]
[1727531156746,19.45587,2662.8,2662.7,10.56631]
[1727531157147,21.9147955,2662.8,2662.7,10.56631]
[1727531157342,21.91475675,2662.8,2662.7,10.56631]
[1727531158947,19.45587,2662.8,2662.7,10.56631]
[1727531159149,21.91450433,2662.8,2662.7,10.56631]
[1727531160355,21.91439938,2662.8,2662.7,10.56631]
[1727531160758,15.91439938,2662.8,2662.7,10.56631]
[1727531161054,13.62577938,2662.8,2662.7,10.56631]
[1727531161253,14.97577938,2662.8,2662.7,10.56631]
[1727531161450,12.51725,2662.8,2662.7,10.56631]
[1727531165255,16.66367,2662.8,2662.7,10.56631]
[1727531165954,15.72505,2662.8,2662.7,10.56631]
[1727531166357,17.69174382,2662.8,2662.7,10.56631]
[1727531166557,15.72505,2662.8,2662.7,10.56631]
[1727531169352,19.12219938,2662.8,2662.7,10.56631]
[1727531173053,16.66367,2662.8,2662.7,10.56631]
[1727531180560,17.60229,2662.8,2662.7,10.56631]
[1727531180865,26.54693062,2662.8,2662.7,8.70717059]
[1727531181759,0.37552,2662.3,2662.2,0.4014]
[1727531181966,13.63031968,2662.3,2661.8,2.11119451]
[1727531182169,6.235,2661.9,2661.8,2.11119451]
[1727531182357,6.235,2661.9,2661.8,0.756]
[1727531182358,6.61057,2661.9,2661.8,0.756]
[1727531182563,8.58024441,2661.9,2661.8,0.756]
[1727531182764,11.78804441,2661.9,2661.8,0.756]
[1727531183265,11.78804441,2661.9,2661.6,0.37561]
[1727531183465,6.61061,2661.7,2661.5,0.756]
[1727531183662,1.35,2661.6,2661.5,0.756]
[1727531183865,3.69528441,2661.6,2661.5,0.756]
[1727531184068,3.31967441,2661.6,2661.5,0.756]
[1727531184468,7.96061,2661.6,2661.5,0.756]
[1727531184665,11.16841,2661.6,2661.5,0.756]
[1727531185264,13.13808441,2661.6,2661.5,0.3712]
[1727531185462,13.13808441,2661.6,2661.3,0.75445]
[1727531185662,13.13808441,2661.6,2661.3,0.7619]
[1727531185663,1.35,2661.4,2661.3,0.7619]
[1727531185869,1.35,2661.4,2661.3,1.13756]
[1727531187485,1.72564,2661.4,2661.3,0.7619]
[1727531187667,7.96064,2661.4,2661.3,0.7619]
[1727531188673,7.585,2661.4,2661.3,0.7619]
[1727531188873,7.96064,2661.4,2661.3,0.7619]
[1727531192078,7.96064,2661.4,2661.3,1.13756]
[1727531192378,7.96064,2661.4,2661.3,0.7619]
[1727531192967,7.96064,2661.4,2661.3,1.13756]
[1727531193279,7.96064,2661.4,2661.3,0.7619]
[1727531197078,0.37564,2661.4,2661.3,1.13756]
[1727531197485,6.235,2661.5,2661.4,0.37564]
[1727531197783,6.235,2661.5,2661.4,4.13324]
[1727531198482,6.61063,2661.5,2661.4,4.13324]
[1727531200182,6.235,2661.5,2661.4,4.13324]
[1727531202589,6.61062,2661.6,2661.4,4.13324]
[1727531202894,6.235,2661.6,2661.5,0.37563]
[1727531203383,6.235,2661.6,2661.5,4.13323]
[1727531203586,6.235,2661.7,2661.6,0.37561]
[1727531203790,6.235,2661.7,2661.6,0.76861]
[1727531204488,6.235,2661.7,2661.6,0.393]
[1727531204990,6.235,2661.7,2661.6,0.76861]
[1727531205686,6.235,2661.7,2661.6,4.1498]
[1727531205888,4.35409,2661.8,2661.6,4.52541]
[1727531206087,4.35409,2661.8,2661.6,0.76861]
[1727531206789,3.9785,2661.8,2661.6,0.76861]
[1727531207195,4.35409,2661.8,2661.6,0.76861]
[1727531207491,4.35409,2661.8,2661.6,0.393]
[1727531208088,4.3541,2661.8,2661.6,0.393]
[1727531208287,0.3756,2661.7,2661.6,0.393]
[1727531208502,4.3541,2661.8,2661.6,0.393]
[1727531208687,4.3541,2661.8,2661.5,1.17162]
[1727531210085,3.9785,2661.8,2661.5,1.17162]
[1727531210290,0.37561,2661.7,2661.5,0.796]
[1727531210495,1.72561,2661.7,2661.5,0.796]
[1727531210695,1.72561,2661.7,2661.5,4.5528]
[1727531210887,1.72561,2661.7,2661.5,0.796]
[1727531212289,0.389,2661.6,2661.5,0.796]
[1727531212791,0.389,2661.6,2661.5,4.5536]
[1727531214393,0.389,2661.6,2661.5,4.92923]
[1727531214897,0.389,2661.6,2661.5,4.5536]
[1727531215393,0.389,2661.6,2661.5,4.92923]
[1727531216194,0.389,2661.6,2661.5,4.5536]
[1727531216791,0.76461,2661.6,2661.5,4.5536]
[1727531217796,0.389,2661.6,2661.5,4.5536]
[1727531218800,0.389,2661.6,2661.5,4.92923]
[1727531221291,0.76461,2661.6,2661.5,4.5536]
[1727531223097,0.76461,2661.6,2661.5,4.92923]
[1727531223304,0.389,2661.6,2661.5,4.92923]
[1727531223821,0.76461,2661.6,2661.5,4.92923]
[1727531224704,0.7707,2661.8,2661.7,0.3756]
[1727531224893,0.7707,2661.8,2661.7,3.7568]
[1727531225094,1.14629,2661.8,2661.7,3.7568]
[1727531225694,1.14629,2661.8,2661.7,4.1324]
[1727531225695,0.7707,2661.8,2661.7,4.1324]
[1727531225900,0.7707,2661.8,2661.7,5.11490387]
[1727531226501,0.7707,2661.8,2661.7,4.1324]
[1727531226696,0.7707,2661.8,2661.7,5.90990387]
[1727531226899,0.7707,2661.8,2661.7,6.31090387]
[1727531227797,0.7707,2661.8,2661.7,7.66090387]
[1727531229095,0.7707,2661.8,2661.7,9.41678634]
[1727531230001,0.7707,2661.8,2661.7,8.92953896]
[1727531230208,0.7707,2661.8,2661.7,7.66070476]
[1727531230508,0.7707,2661.8,2661.7,8.92914276]
[1727531231193,0.7707,2661.8,2661.7,7.66070476]
[1727531231805,1.14629,2661.8,2661.7,7.28510476]
[1727531232002,0.7707,2661.8,2661.7,7.66070476]
[1727531233596,7.0057,2661.8,2661.7,7.66070476]
[1727531233902,0.7707,2661.8,2661.7,8.92895384]
[1727531234101,0.7707,2661.8,2661.7,7.66070476]
[1727531236807,0.7707,2661.8,2661.7,8.92856681]
[1727531237007,0.7707,2661.8,2661.7,7.66046857]
[1727531238697,0.7707,2661.8,2661.7,8.92834188]
[1727531239407,0.7707,2661.8,2661.7,7.66046857]
[1727531239609,0.7707,2661.8,2661.7,8.92830255]
[1727531239803,0.7707,2661.8,2661.7,7.94623398]
[1727531240008,0.7707,2661.8,2661.7,10.39734801]
[1727531240310,0.7707,2661.8,2661.7,7.94623398]
[1727531241109,0.7707,2661.8,2661.7,9.41550891]
[1727531241404,0.7707,2661.8,2661.7,7.94618198]
[1727531242208,0.7707,2661.8,2661.7,8.9281051]
[1727531242610,0.7707,2661.8,2661.7,7.94618198]
[1727531243514,0.7707,2661.8,2661.7,9.41545691]
[1727531244017,0.37,2662.0,2661.9,0.37557]
[1727531244216,0.7506,2662.0,2661.9,0.37557]
[1727531244817,0.7506,2662.0,2661.9,1.35739173]
[1727531245216,0.3806,2662.0,2661.9,1.35739173]
[1727531245406,0.7624,2662.0,2661.9,1.35739173]
[1727531245609,0.7624,2662.0,2661.9,2.62509179]
[1727531245916,0.7624,2662.0,2661.9,1.35739173]
[1727531246414,0.7624,2662.0,2661.9,2.62498757]
[1727531246915,0.7624,2662.0,2661.9,5.39996584]
[1727531247111,0.7624,2662.0,2661.9,6.38153759]
[1727531247416,0.7624,2662.0,2661.9,5.39996584]
[1727531247721,0.3806,2662.0,2661.9,6.86924077]
[1727531250607,0.3873,2662.1,2662.0,0.37556]
[1727531251018,0.3873,2662.1,2662.0,1.35692979]
[1727531251315,0.3873,2662.1,2662.0,0.37556]
[1727531251726,0.3873,2662.1,2662.0,4.13236]
[1727531252022,0.3873,2662.1,2662.0,5.49442979]
[1727531252222,0.3873,2662.1,2662.0,36.09442979]
[1727531252920,0.3873,2662.1,2662.0,39.30222979]
[1727531255017,0.3873,2662.1,2662.0,41.91755569]
[1727531255216,0.3873,2662.1,2662.0,40.65187625]
[1727531255410,0.3873,2662.1,2662.0,41.91708631]
[1727531255612,0.3873,2662.1,2662.0,41.91693035]
[1727531256017,0.3873,2662.1,2662.0,40.65187625]
[1727531256618,0.3873,2662.1,2662.0,39.71617625]
[1727531256926,0.3873,2662.1,2662.0,38.73516]
[1727531257327,0.3873,2662.1,2662.0,35.52736]
[1727531257619,0.3873,2662.1,2662.0,31.77056]
[1727531257824,0.3873,2662.1,2662.0,35.52736]
[1727531258624,0.3873,2662.1,2662.0,30.97556]
[1727531258820,0.3873,2662.1,2662.0,35.52736]
[1727531259217,0.3873,2662.1,2662.0,31.77056]
[1727531259414,0.3873,2662.1,2661.9,0.98101625]
[1727531259623,1.7373,2662.1,2661.9,0.98101625]
[1727531259921,0.37556,2662.0,2661.9,0.795]
[1727531260141,0.37557,2661.9,2661.7,30.6]
[1727531260320,0.37557,2661.9,2661.8,0.4]
[1727531260723,0.37557,2661.9,2661.8,0.77559]
[1727531260920,0.37559,2661.8,2661.7,0.795]
[1727531261124,0.37558,2661.9,2661.7,1.1706]
[1727531261623,0.37559,2661.8,2661.7,0.795]
[1727531262622,0.37559,2661.8,2661.6,2.15162625]
[1727531262826,0.7883,2661.7,2661.6,2.15162625]
[1727531263457,1.1666,2661.7,2661.6,2.15162625]
[1727531264230,1.1666,2661.7,2661.6,1.35662625]
[1727531265530,1.1666,2661.7,2661.6,2.62297606]
[1727531267124,1.5422,2661.7,2661.6,2.24736606]
[1727531267320,1.1666,2661.7,2661.6,0.98101625]
[1727531267527,13.44941,2661.7,2661.3,2.15166625]
[1727531267743,1.35,2661.5,2661.4,0.37564]
[1727531268035,11.09888441,2661.7,2661.3,1.77601625]
[1727531268235,0.7883,2661.7,2661.4,0.4049]
[1727531268533,1.16391,2661.7,2661.5,0.37562]
[1727531268731,0.39,2661.6,2661.5,0.37562]
[1727531271237,0.39,2661.6,2661.5,1.72562]
[1727531271533,0.7883,2661.7,2661.6,0.37561]
[1727531273839,7.0253,2661.7,2661.6,0.37561]
[1727531275944,7.4009,2661.7,2661.6,0.37561]
[1727531277241,7.0253,2661.7,2661.6,0.37561]
[1727531278237,7.4009,2661.7,2661.5,2.52062]
[1727531278540,0.3801,2661.6,2661.5,1.17062]
[1727531279246,0.3801,2661.6,2661.4,1.38591625]
[1727531279247,0.75571,2661.6,2661.4,1.38591625]
[1727531279449,0.3801,2661.6,2661.5,0.795]
[1727531279752,0.3801,2661.6,2661.5,1.17063]
[1727531280137,0.3801,2661.6,2661.5,0.37563]
[1727531281150,0.75571,2661.6,2661.4,1.76155625]
[1727531281337,0.3801,2661.6,2661.5,0.37563]
[1727531283949,6.6171,2661.6,2661.5,0.37563]
[1727531301358,6.6171,2661.6,2661.5,1.35664625]
[1727531303153,6.6171,2661.6,2661.5,2.6241569]
[1727531304257,6.6171,2661.6,2661.5,1.64314065]
[1727531305055,6.6171,2661.6,2661.5,3.11241558]
[1727531309259,0.3801,2661.6,2661.5,3.11241558]
[1727531309765,0.7883,2661.7,2661.6,0.37561]
[1727531309967,0.7883,2661.7,2661.6,3.11239558]
[1727531311868,0.7883,2661.7,2661.6,3.11356503]
[1727531312965,1.1639,2661.7,2661.6,3.11356503]
[1727531314060,7.4009,2661.7,2661.6,3.11356503]
[1727531314259,7.0253,2661.7,2661.6,3.11356503]
[1727531314860,7.0253,2661.7,2661.6,1.6442901]
[1727531315471,7.0253,2661.7,2661.6,3.12004347]
[1727531315769,7.0253,2661.7,2661.6,1.6442901]
[1727531316562,7.0253,2661.7,2661.6,1.64430924]
[1727531317168,7.4009,2661.7,2661.6,1.64430924]
[1727531317372,7.0253,2661.7,2661.6,3.11995682]
[1727531317764,7.0253,2661.7,2661.6,3.11995409]
[1727531318164,7.0253,2661.7,2661.6,1.64430924]
[1727531318568,7.0253,2661.7,2661.6,3.11991959]
[1727531319069,7.0253,2661.7,2661.6,2.74430959]
[1727531319070,18.62418441,2661.7,2661.6,2.74430959]
[1727531319265,6.237,2661.5,2661.3,0.86011035]
[1727531319470,7.17615,2661.3,2660.8,3.12875324]
[1727531319774,8.20824502,2661.1,2660.7,5.7068]
[1727531320072,6.237,2661.1,2661.0,0.3757]
[1727531320368,6.237,2661.1,2660.9,1.72571]
[1727531321770,6.61269,2661.1,2660.9,1.72571]
[1727531322987,6.237,2661.1,2660.9,1.72571]
[1727531323365,6.61269,2661.1,2660.9,1.35]
[1727531323571,6.61269,2661.1,2660.9,1.72571]
[1727531328678,6.61269,2661.1,2661.0,0.3757]
[1727531329179,6.237,2661.1,2661.0,0.3757]
[1727531329573,6.237,2661.1,2661.0,0.7658]
[1727531330374,6.61269,2661.1,2661.0,0.7658]
[1727531332383,6.61269,2661.1,2661.0,0.3901]
[1727531337779,6.61269,2661.1,2661.0,0.7658]
[1727531338983,6.237,2661.1,2661.0,0.7658]
[1727531339284,6.61269,2661.1,2661.0,0.7658]
[1727531340286,6.61269,2661.1,2661.0,0.3901]
[1727531340886,0.3757,2661.0,2660.9,1.35]
[1727531341287,0.3757,2661.0,2660.9,1.72571]
[1727531342185,0.37571,2660.9,2660.8,0.37572]
[1727531342396,0.76441,2660.9,2660.8,1.16972]
[1727531343187,0.76441,2660.9,2660.8,0.37572]
[1727531343385,0.76441,2660.9,2660.8,1.16972]
[1727531343890,0.3887,2660.9,2660.8,1.16972]
[1727531344296,6.6127,2661.1,2660.9,0.3757]
[1727531344490,7.0128,2661.1,2661.0,0.398]
[1727531346889,7.01279,2661.1,2661.0,0.7737]
[1727531348694,3.58347,2661.3,2661.2,0.37567]
[1727531348895,3.58346,2661.3,2661.2,1.35]
[1727531349093,0.37567,2661.2,2661.1,1.5534]
[1727531350899,0.37567,2661.2,2661.1,1.92909]
[1727531351095,6.237,2661.3,2661.1,1.5534]
[1727531351295,6.61266,2661.3,2661.2,0.37567]
[1727531351795,6.237,2661.3,2661.2,0.37567]
[1727531354395,6.237,2661.3,2661.2,1.72567]
[1727531354597,6.237,2661.5,2661.4,0.37564]
[1727531354798,6.61263,2661.5,2661.4,0.37564]
[1727531355399,6.61263,2661.5,2661.3,0.78235]
[1727531355703,6.61263,2661.5,2661.4,0.37564]
[1727531355704,6.237,2661.5,2661.4,0.37564]
[1727531356099,6.61264,2661.5,2661.3,0.78235]
[1727531357007,0.37564,2661.4,2661.3,0.78235]
[1727531357308,0.37564,2661.4,2661.3,0.4067]
[1727531359897,6.237,2661.5,2661.3,0.78235]
[1727531359898,6.61264,2661.5,2661.3,0.78235]
[1727531360516,6.237,2661.5,2661.4,0.37564]
[1727531364308,6.61263,2661.5,2661.4,0.37564]
[1727531365008,6.237,2661.5,2661.4,0.37564]
[1727531368911,0.4064,2661.6,2661.5,0.37563]
[1727531369110,0.4064,2661.6,2661.5,2.51433]
[1727531371911,6.237,2661.8,2661.7,0.3756]
[1727531372107,6.6283,2661.8,2661.7,1.7256]
[1727531375313,0.3913,2661.8,2661.7,1.7256]
[1727531375707,0.3913,2661.8,2661.7,32.3256]
[1727531392024,0.3913,2661.8,2661.7,30.9756]
[1727531392226,0.3913,2661.8,2661.7,1.1696]
[1727531392824,0.3913,2661.8,2661.7,31.7696]
[1727531393720,0.3913,2661.8,2661.7,1.1696]
[1727531394528,0.3913,2661.8,2661.7,2.5196]
[1727531401634,6.237,2662.1,2662.0,0.37556]
[1727531401837,0.3735,2662.1,2662.0,1.72556]
[1727531402040,0.37554,2662.2,2662.0,1.16855]
[1727531402339,0.37554,2662.2,2662.1,0.793]
[1727531402742,0.37554,2662.1,2661.9,0.78297]
[1727531403046,0.37555,2662.1,2661.9,0.793]
[1727531403241,0.7848,2662.0,2661.9,0.793]
[1727531403533,0.7848,2662.0,2661.9,1.16857]
[1727531404336,1.16036,2662.0,2661.9,0.793]
[1727531404939,0.7848,2662.0,2661.9,0.793]
[1727531405135,0.7848,2662.0,2661.9,1.16857]
[1727531412334,0.7848,2662.0,2661.8,0.37558]
[1727531412335,1.16036,2662.0,2661.8,0.37558]
[1727531412536,1.16036,2662.0,2661.8,1.84434901]
[1727531412737,1.16036,2662.0,2661.8,2.63734901]
[1727531413033,0.7848,2662.0,2661.9,0.37557]
[1727531413435,0.7848,2662.0,2661.9,1.62999775]
[1727531413835,0.7848,2662.0,2661.9,0.37557]
[1727531414241,0.7848,2662.0,2661.9,1.63004293]
[1727531414445,7.0218,2662.0,2661.9,1.63004293]
[1727531414646,7.39736,2662.0,2661.9,1.63004293]
[1727531414945,7.0218,2662.0,2661.9,1.63004293]
[1727531416544,7.0218,2662.0,2661.9,3.09881194]
[1727531417050,7.39736,2662.0,2661.9,3.09881194]
[1727531417249,7.0218,2662.0,2661.9,3.09881194]
[1727531417752,7.39736,2662.0,2661.9,3.09881194]
[1727531418150,7.0218,2662.0,2661.9,3.09881194]
[1727531418742,7.39736,2662.0,2661.9,2.72324194]
[1727531418947,15.71196,2662.0,2661.9,2.72324194]
[1727531419140,0.37559,2661.8,2661.6,2.66916901]
[1727531419345,0.4039,2661.7,2661.6,3.04477901]
[1727531419655,0.4039,2661.7,2661.6,2.83289985]
[1727531420149,0.4039,2661.7,2661.6,4.30166886]
[1727531422265,0.4039,2661.7,2661.6,3.50866886]
[1727531422568,0.4039,2661.7,2661.6,4.30166886]
[1727531423467,8.20864699,2661.9,2661.8,0.37559]
[1727531423667,6.237,2661.9,2661.8,1.72559]
[1727531423867,6.237,2661.9,2661.8,2.98212935]
[1727531424066,6.237,2661.9,2661.8,4.45089836]
[1727531425066,2.31964699,2662.2,2662.1,0.37554]
[1727531425272,11.9089314,2662.3,2662.2,0.37553]
[1727531425273,11.41644699,2662.3,2662.2,0.37553]
[1727531425565,9.4448,2662.3,2662.2,0.37553]
[1727531425772,9.4448,2662.3,2662.2,0.77603]
[1727531425963,6.237,2662.3,2662.2,0.77603]
[1727531428573,6.61252,2662.3,2662.2,0.77603]
[1727531429671,22.89796699,2662.3,2661.9,1.84892565]
[1727531429864,0.37558,2661.9,2661.7,3.02071565]
[1727531430066,0.37558,2661.9,2661.7,1.54849]
[1727531430067,0.4055,2661.8,2661.7,1.54849]
[1727531430373,0.78109,2661.8,2661.7,1.1729]
[1727531431164,0.78109,2661.8,2661.6,0.4083]
[1727531431165,0.3756,2661.7,2661.6,0.4083]
[1727531432966,0.37561,2661.6,2661.5,0.793]
[1727531433165,0.37561,2661.6,2661.2,1.47222565]
[1727531433166,7.587,2661.6,2661.2,1.47222565]
[1727531433478,0.37566,2661.3,2661.1,1.5773]
[1727531433772,0.37566,2661.3,2661.1,1.95299]
[1727531433773,0.3789,2661.2,2661.1,1.95299]
[1727531434369,0.3789,2661.2,2661.1,1.5773]
[1727531434674,0.3789,2661.2,2661.1,1.15999]
[1727531438769,0.75457,2661.2,2661.1,0.3744]
[1727531439474,0.3757,2661.0,2660.9,35.9341]
[1727531439664,0.3757,2661.0,2660.9,37.10281]
[1727531439866,0.3757,2661.1,2660.9,37.10281]
[1727531440063,0.3757,2661.0,2660.9,36.30981]
[1727531440269,0.3757,2661.0,2660.9,5.70981]